Cogmind - Beta 14 @@@ ROGUE MODE // 2024.08.08 @ 11:31:22 // Halloween2019/Abominations Player: Minty Result: Destroyed by Lesser Abomination with EM Pulse Cannon Performance ------------- Evolutions (2) 1000 Regions Visited (3) 600 Robots Destroyed (37) 185 Value Destroyed (2101) 2101 Prototype IDs (4) 80 Alien Tech Used (0) 0 Bonus (35) 35 TOTAL SCORE: 4001 Bonus ------- Follower Combat Kills 35 Cogmind --------- Core Integrity 0/550 Matter 191/300 Energy 24/100 System Corruption 7% Temperature Warm (127) Movement Core (100) Ox1 Location -8/Materials Parts ------- > --- POWER (1) -------- (None) > --- PROPULSION (2) --- (None) > --- UTILITY (5) ------ Small Storage Unit > --- WEAPON (3) ------- (None) > --- INVENTORY (8) ---- Faulty Cooled Ion Engine Light Treads Structural Scanner ECM Suite High-powered Shotgun Peak State ------------ > --- POWER ------------ Ion Engine > --- PROPULSION ------- Wheel Wheel > --- UTILITY ---------- Improved Heat Sink Small Storage Unit Hardened Light Armor Plating Improved Light Armor Plating Hacking Suite > --- WEAPON ----------- Advanced Beam Rifle Advanced Beam Cannon High-powered Shotgun > --- INVENTORY -------- Cooled Ion Engine Light Treads Light Treads Wheel Structural Scanner ECM Suite Heavy Assault Rifle Grenade Launcher [Rating: 26] Favorites ----------- Power Ion Engine Engine Ion Engine Propulsion Wheel Treads Light Treads Leg Aluminum Leg Wheel Wheel Utility Small Storage Unit Device Structural Scanner Storage Small Storage Unit Processor Signal Interpreter Hackware Hacking Suite Protection Hardened Light Armor Plating Weapon Assault Rifle Energy Gun Advanced Beam Rifle Energy Cannon Advanced Beam Cannon Ballistic Gun Assault Rifle Launcher Grenade Launcher Build | -11 -10 -9 -8 ------- Run | Yrd Mat Mat Mat Slots Evolved 4 | . . 2 2 Power . | . . . . Propulsion . | . . . . Utility 3 | . . 1 2 Weapon 1 | . . 1 . Parts Attached 37 | . 9 10 18 Power 6 | . 3 1 2 Engine 6 | . 3 1 2 Core . | . . . . Reactor . | . . . . Propulsion 5 | . 3 . 2 Treads 1 | . . . 1 Leg 1 | . 1 . . Wheel 3 | . 2 . 1 Hover . | . . . . Flight . | . . . . Utility 8 | . 1 2 5 Device 2 | . . 1 1 Storage . | . . . . Processor 1 | . 1 . . Hackware 1 | . . . 1 Protection 4 | . . 1 3 Artifact . | . . . . Weapon 18 | . 2 7 9 Energy Gun 3 | . 1 1 1 Energy Cannon 2 | . . 1 1 Ballistic Gun 9 | . . 5 4 Ballistic Cannon . | . . . . Launcher 4 | . 1 . 3 Special Weapon . | . . . . Impact Weapon . | . . . . Slashing Weapon . | . . . . Piercing Weapon . | . . . . Special Melee Weapon . | . . . . Unidentified Prototypes 4 | . . 2 2 Parts Lost 16 | . 2 3 11 Power 3 | . 1 1 1 Propulsion 5 | . 1 . 4 Utility 4 | . . . 4 Weapon 4 | . . 2 2 Highest Loss Streak 11 | . 2 2 11 To Critical Strikes . | . . . . Average Slot Usage (%) 94 | . 94 96 92 Engine 9 | . 13 9 7 Leg 6 | . 24 . . Wheel 13 | . 3 22 14 Device 9 | . . 10 13 Storage 10 | . 14 11 9 Processor 3 | . 11 . . Hackware 3 | . . . 9 Protection 7 | . . 10 10 Energy Gun 7 | . 14 1 6 Energy Cannon 4 | . . 2 8 Ballistic Gun 14 | . 11 24 10 Launcher 1 | . 2 2 . Peak Build Rating 26 | . 7 14 26 Average Rating 14 | . 6 11 21 On Entrance 8 | 6 6 7 14 Naked Turns . | . . . . Heaviest Build 28 | 13 15 25 28 Greatest Support 20 | 20 20 20 20 Greatest Overweight (x) 1 | . 1 1 1 Average Overweight (x) . | . . . . Largest Inventory Capacity 8 | . 8 8 8 Average Capacity 8 | . 8 8 8 Most Carried 8 | . 7 8 8 Average Carried 6 | . 5 6 6 Final Capacity 8 | 8 8 8 8 Final Carried 6 | 6 5 6 5 Class Distribution -------------------- 65% | Tank 34% | Mutant Dominant Class ---------------- Mutant | -10/Materials Tank | -9/Materials Tank | -8/Materials Resources | -11 -10 -9 -8 ----------- Run | Yrd Mat Mat Mat Matter Collected 999 | 200 191 243 365 Remotely . | . . . . Salvage Created 1849 | . 419 414 1016 Parts 103 | . 17 39 47 Haulers Intercepted . | . . . . Recyclers Shooed 1 | . 1 . . Parts Field Recycled . | . . . . Retrieved Matter . | . . . . Parts Self-Destructed . | . . . . Prevented . | . . . . Kills | -11 -10 -9 -8 ------- Run | Yrd Mat Mat Mat Combat Hostiles Destroyed 36 | . 12 8 16 Guns 19 | . 6 5 8 Cannons 10 | . . 3 7 AOE 7 | . 6 . 1 Classes Destroyed 5 | . 3 1 1 Builder 1 | . 1 . . Grunt 10 | . 9 . 1 Sentry 1 | . . 1 . Hunter 1 | . . . 1 Abomination 24 | . 3 7 14 Best Kill Streak 6 | . 5 6 4 Combat Bots Only 6 | . 5 6 4 Max Kills in Single Turn 2 | . 2 1 2 Gunslinging . | . . . . Exploded 2 | . 2 . 1 Melee . | . . . . Uniques/NPCs Destroyed . | . . . . Combat | -11 -10 -9 -8 -------- Run | Yrd Mat Mat Mat Hostile Shots Fired 464 | . 52 68 344 Missed 150 | . 16 24 110 Damage Taken 4310 | . 484 823 3003 Core 817 | . 123 123 571 Absorbed by Shields . | . . . . Core Remaining (%) 73 | 100 50 69 . Volleys Fired 124 | . 29 34 61 Largest 3 | . 2 3 3 Hottest 159 | . 80 111 159 Shots Fired 288 | . 57 82 149 Gun 210 | . 50 68 92 Cannon 66 | . . 12 54 Launcher 12 | . 7 2 3 Special . | . . . . Kinetic 141 | . 21 67 53 Thermal 135 | . 29 13 93 Explosive 12 | . 7 2 3 Electromagnetic . | . . . . Robot Hit Streak 11 | . 11 7 11 Robot Miss Streak 8 | . 2 8 4 Penetration Max . | . . . . Secondary Targets . | . . . . Shots Hit Robots 193 | . 40 51 102 Core Hits 96 | . 27 24 45 Critical Kills . | . . . . Critical Parts Destroyed 3 | . . 3 . Critical Strikes 7 | . 2 3 2 Burn 4 | . 2 . 2 Destroy 3 | . . 3 . Melee Attacks . | . . . . Impact . | . . . . Slashing . | . . . . Piercing . | . . . . Sneak Attacks . | . . . . Combat Hostiles . | . . . . Follow-up Attacks . | . . . . Damage Inflicted 4312 | . 896 869 2547 Guns 2452 | . 451 612 1389 Cannons 1129 | . . 203 926 Explosions 727 | . 445 50 232 Melee . | . . . . Ramming 4 | . . 4 . Kinetic 1502 | . 156 612 734 Thermal 2079 | . 295 203 1581 Explosive 727 | . 445 50 232 Electromagnetic . | . . . . Impact . | . . . . Slashing . | . . . . Piercing . | . . . . Highest Corruption 11 | . . 11 6 Average Corruption 3 | . . 4 2 Corruption Purged . | . . . . Corruption Blocked . | . . . . Effects 6 | . . 3 3 Message Errors 3 | . . 2 1 Matter Fused 3 | . . 1 2 Overload Shots . | . . . . Overflow Damage 76 | . 22 15 39 Projectiles 54 | . . 15 39 Explosions 22 | . 22 . . Melee . | . . . . Knockbacks . | . . . . Impact . | . . . . Kinetic . | . . . . Secondary . | . . . . Self-Inflicted Damage 24 | . . 24 . Shots 1 | . . 1 . Rammed 1 | . . 1 . Targets Rammed 1 | . . 1 . Kicked . | . . . . Crushed . | . . . . Highest Temperature 381 | . 171 306 381 Average Temperature 92 | . 62 91 109 Received Heat Transfer 814 | . 189 117 508 Effects 4 | . . . 4 Shutdowns 1 | . . . 1 Interference 2 | . . . 2 Damage (minor) 1 | . . . 1 Siege Activations . | . . . . Robots Corrupted . | . . . . Combat Hostiles . | . . . . Parts Fried . | . . . . Impact Corruptions . | . . . . Robots Melted . | . . . . Combat Hostiles . | . . . . Parts Melted 1 | . 1 . . Heat Transferred 1634 | . 766 72 796 Parts Sabotaged . | . . . . Parts Stolen . | . . . . Parts Stripped . | . . . . Power Chain Reactions . | . . . . Alert | -11 -10 -9 -8 ------- Run | Yrd Mat Mat Mat Peak Influence 283 | . 283 193 173 Initial 118 | . . 118 81 Average 129 | . 115 173 109 Maximum Alert Level 1 | . 1 . . Low Security (%) 96 | . 85 100 100 Level 1 3 | . 14 . . Level 2 . | . . . . Level 3 . | . . . . Level 4 . | . . . . Level 5 . | . . . . High Security . | . . . . Max Security . | . . . . Squads Dispatched 14 | . 5 4 5 Investigation 8 | . 5 2 1 Extermination . | . . . . Reinforcement 3 | . . 1 2 Assault 2 | . . 1 1 Garrison 1 | . . . 1 Intercept . | . . . . Searches Triggered . | . . . . Construction Impeded . | . . . . Haulers Reinforced . | . . . . Active Scanning Responses . | . . . . Cargo Convoy Interrupts . | . . . . Stealth | -11 -10 -9 -8 --------- Run | Yrd Mat Mat Mat Distress Signals 11 | . . 4 7 Communications Jammed . | . . . . Distress Signals . | . . . . Times Spotted 52 | . 15 10 27 Peak Tracking Total 8 | . 4 3 8 Tactical Retreats 3 | . . . 3 Traps | -11 -10 -9 -8 ------- Run | Yrd Mat Mat Mat Traps Triggered 1 | . 1 . . Indirectly . | . . . . Trap Hack Attempts . | . . . . Triggered . | . . . . Disarmed . | . . . . Reprogrammed . | . . . . Reused . | . . . . Traps Extracted . | . . . . Installed . | . . . . Triggered . | . . . . Objects Rigged 4 | . 2 2 . Machines | -11 -10 -9 -8 ---------- Run | Yrd Mat Mat Mat Machines Disabled 1 | . . 1 . Max in Single Turn 1 | . . 1 . Machines Repaired . | . . . . Machines Dismantled . | . . . . Machines Sabotaged . | . . . . Overloaded Fab Kills . | . . . . Hacking | -11 -10 -9 -8 --------- Run | Yrd Mat Mat Mat Machines Accessed 7 | . 4 2 1 Terminals 5 | . 3 2 . Fabricators . | . . . . Repair Stations . | . . . . Recycling Units 1 | . 1 . . Scanalyzers . | . . . . Garrison Access 1 | . . . 1 Total Hacks 25 | . 12 10 3 Successful 15 | . 7 6 2 Failed 10 | . 5 4 1 Catastrophic 2 | . 1 1 . Database Lockouts . | . . . . Manual 17 | . 9 5 3 Terminals 20 | . 10 10 . Fabricators . | . . . . Repair Stations . | . . . . Recycling Units 2 | . 2 . . Scanalyzers . | . . . . Garrison Access 3 | . . . 3 Terminal Hacks 5 | . 2 3 . Branch Access Points 1 | . . 1 . Terminal Index 1 | . 1 . . Alert Level 3 | . 1 2 . Fabricator Hacks . | . . . . Repair Station Hacks . | . . . . Recycling Unit Hacks 1 | . 1 . . Report Inventory 1 | . 1 . . Scanalyzer . | . . . . Garrison Access Hacks . | . . . . Unauthorized Hacks 9 | . 4 3 2 Terminals 6 | . 3 3 . Botnet 2 | . 1 1 . Detonate 2 | . 1 1 . Operators 1 | . . 1 . Sabotage 1 | . 1 . . Fabricators . | . . . . Repair Stations . | . . . . Recycling Units 1 | . 1 . . Tunnel 1 | . 1 . . Scanalyzers . | . . . . Garrison Access 2 | . . . 2 Broadcast 1 | . . . 1 Reprogram 1 | . . . 1 Data Cores Recovered . | . . . . Used . | . . . . Hacking Detections 6 | . 3 2 1 Full Trace Events 2 | . 2 . . Feedback Events . | . . . . Feedback Blocked . | . . . . Robot Schematics Acquired . | . . . . Robots Built . | . . . . Authchips . | . . . . Time . | . . . . Total Robot Build Rating . | . . . . Part Schematics Acquired . | . . . . Parts Built . | . . . . Authchips . | . . . . Time . | . . . . Total Part Build Rating . | . . . . Parts Repaired . | . . . . Time . | . . . . Parts Recycled . | . . . . Recycled Matter . | . . . . Retrieved Matter . | . . . . Retrieved Components . | . . . . Parts Scanalyzed . | . . . . Part Schematics Acquired . | . . . . Parts Damaged . | . . . . Bothacking | -11 -10 -9 -8 ------------ Run | Yrd Mat Mat Mat Used RIF Installer . | . . . . Robots Hacked . | . . . . Non-combat . | . . . . Combat . | . . . . Robot Hacks Applied . | . . . . Relay Couplers Released . | . . . . Fabnet Peak Effective % . | . . . . Robots Rewired . | . . . . Allies Hacked . | . . . . Hacks Repelled . | . . . . Allies | -11 -10 -9 -8 -------- Run | Yrd Mat Mat Mat Total Allies 1 | . . . 1 Largest Group 1 | . . . 1 Highest-Rated Group 15 | . . . 15 Highest-Rated Ally 15 | . . . 15 Total Orders . | . . . . Ally Attacks 3 | . . . 3 Total Damage 44 | . . . 44 Kills 1 | . . . 1 Allies Corrupted . | . . . . Allies Melted . | . . . . Intel | -11 -10 -9 -8 ------- Run | Yrd Mat Mat Mat Robot Analysis Total . | . . . . Derelict Logs Recovered . | . . . . Drone Launches . | . . . . Drone Recoveries . | . . . . Exploration | -11 -10 -9 -8 ------------- Run | Yrd Mat Mat Mat Turns Passed 1048 | . 285 299 464 Spaces Moved 538 | 1 158 177 202 Core 1 | . . . 1 Treads 7 | . . . 7 Legs 135 | 1 134 . . Wheels 395 | . 24 177 194 Hover . | . . . . Flight . | . . . . Fastest Speed 80 | 120 80 80 80 Average Speed 100 | 120 114 91 97 Slowest Speed 240 | 120 190 95 240 Overloaded Moves . | . . . . Propulsion Burnouts . | . . . . Robots Hopped . | . . . . Cave-ins Triggered . | . . . . Exploration Rate (%) 20 | 2 28 24 26 Regions Visited 3 Branch Regions . Pre-discovered Areas 1 | . 1 . . Known Exits Taken 1 | . 1 . . Unknown Exits Taken 2 | 1 . 1 . Scrap Searched . | . . . . Spaces Dug . | . . . . Terrain Destroyed 78 | . 39 15 24 Melee . | . . . . Projectile 2 | . . . 2 AOE 76 | . 39 15 22 Terrain Rammed . | . . . . Walls Destroyed . | . . . . Machines Disabled . | . . . . Actions | -11 -10 -9 -8 --------- Run | Yrd Mat Mat Mat Total 726 | . 204 230 292 Wait 9 | . 2 . 7 Move 535 | . 157 176 202 Hop . | . . . . Pick Up 7 | . 2 3 2 Fast Attach 13 | . 2 6 5 Attach 11 | . 3 2 6 Detach 6 | . 2 2 2 Swap 14 | . 4 3 7 Drop 6 | . 3 3 . Fire 124 | . 29 34 61 Melee . | . . . . Ram 1 | . . 1 . Kick . | . . . . Crush . | . . . . Escape Stasis . | . . . . Rewire . | . . . . Trap . | . . . . Miscellaneous . | . . . . Route ------- -11/Scrapyard -10/Materials -9/Materials -8/Materials History --------- Turn | Location | Event 1 | -11/Scrapyard | Discovered new exit (range 0) 1 | -11/Scrapyard | Entered Materials 259 | -10/Materials | Discovered new exit (range 12) 285 | -10/Materials | Identified exit to Materials 286 | -10/Materials | Entered another Materials area 286 | -9/Materials | Evolved 2 slots: Utility x1, Weapon x1 327 | -9/Materials | Identified exit to Mines 523 | -9/Materials | Discovered new exit (range 15) 582 | -9/Materials | System corruption reached 10% 585 | -9/Materials | Entered another Materials area 585 | -8/Materials | Evolved 2 slots: Utility x2 613 | -8/Materials | Garrison activated, responded to threat 699 | -8/Materials | Build established: Tank 993 | -8/Materials | Core integrity fell below 50% 1042 | -8/Materials | Core integrity fell below 20% 1049 | -8/Materials | Destroyed by Lesser Abomination with EM Pulse Cannon Last Messages --------------- 01041_ Lesser Abomination feeds off Hungry Anomaly, taking Wheel. 01041_ Hrd. Light Armor Plating destroyed. 01042_ Lgt. Treads destroyed. 01043_ Lesser Abomination spits out Lgt. Treads. 01043_ Lesser Abomination feeds off Hungry Anomaly, taking Lgt. Treads. 01043_ Hungry Anomaly eats Lgt. Treads. 01043_ Hacking Suite destroyed. 01044_ Unstable Anomaly suddenly flashes brightly. 01046_ Adv. Beam Cannon destroyed. 01047_ Hungry Anomaly eats Corrupted Wheel. 01048_ Lesser Abomination spits out Wheel. 01048_ Lesser Abomination feeds off Hungry Anomaly, taking Wheel. 01048_ Hit by a wave of energy. 01048_ Adv. Beam Rifle destroyed. 01048_ Grenade Launcher ripped off. 01048_ Hvy. Assault Rifle ripped off. 01048_ Hungry Anomaly eats Grenade Launcher. 01049_ Lesser Abomination spits out Corrupted Lgt. Treads. 01049_ Lesser Abomination feeds off Hungry Anomaly, taking Lgt. Treads. 01049_ Hungry Anomaly eats Wheel. Map ----- +----------------------------------------------------+ | ????????????????????????? # " T #########%% | | ????????????????????????? # # ???? # """" ## % | | ?????????????????????????## + ? # """" ## | | ????????????????????????? # # """" ## | | ?????????????????????????? # " # | | ???????????????????????? ???? # + =% | | ????????????????????????########????## # | | ????????????????????????""#########? # = # | | ???????????????????????? ### ####"# | | ???????????????????????? ############### | | ???????????????????????? ! # # " | | ???????????????????????" ==]% + # """ " | | ???????????????????????" # """ " | | ???????????????????????" # """ # | | ???????????????????????" % # # | | ?????????????????????????????# # # # # | | ?????????????????????????????# ##/######+#### | | ?????????????????????????????# = | | ?????????????????????????????# % | | ?????????????????????????????# % | | ?????????????????????????????# ############# | | ????????????????????????????## = ### ########## | | ???????????????????????##### # ####???????? | | ???????????????????????# " # # #??????????? | | ?????????????????### # [###; n #??????????? | | ?????????? A @ A n #??????????? | | ?????????? AA #??????????? | | ?????????? #??????????? | | ???????????####+### ;####??????????? | | ????????????????? # A ##?????????????? | | ??????????????????# n #??????????????? | | ??????????????????# #??????????????? | | ????????????????? ; n T#?????????????? | | ???????????????? ; ##?????????????? | | ??????????????? ; #??????????????? | | ??????????????####; #??????????????? | | ?????????????????#; n ;??????????????? | | ?????????????????#; A ; ?????????????? | | ??????????????????# ;;;;;;"#??????????????? | | ?????????????????????;; ; ?????????????????? | | ???????????????????????% ; ?"??????????????????? | | ?????????????????????????????????????????????????? | | ?????????????????????????????????????????????????? | | ?????????????????????????????????????????????????? | | ?????????????????????????????????????????????????? | | ?????????????????????????????????????????????????? | | ?????????????????????????????????????????????????? | | ?????????????????????????????????????????????????? | | ?????????????????????????????????????????????????? | | ?????????????????????????????????????????????????? | +----------------------------------------------------+ Best States ------------- Heat Dissipation 45 Energy Generation 10 Energy Capacity 250 Matter Stores 300 Matter Capacity 300 Sight Range 16 Terrain Scan Density 10 Armor Coverage 300 Evasion (%) 55 Recoil Reduction 1 Offensive Hacking 10 Item Schematics ----------------- None Robot Schematics ------------------ None Fabricated ------------ Nothing Alien Tech Used ----------------- None Achievements -------------- None Challenges ------------ None Game ------ Seed SegregatorWeaponGuard Manual? 0 Play Time 00:11:21 Cumulative 842.4 hours Start 2024.08.08 @ 11:19:56 End 2024.08.08 @ 11:31:22 Sessions 1 Manual Loads 0 Difficulty Rogue Special Mode Halloween2019/Abominations Game No. 1002 Rogue 723 Adventurer 124 Explorer 155 Win Type - Total 35 Types 27/0/6/1/0/0/0/1/0 Lore% 72 Gallery% 88 Achievement% 78 Wizard Run 0 Options --------- Layout 0 ASCII 0 Keyboard 1 Movement Numpad Keybinds 0 Fullscreen 2 Font 18/Smallcaps Map View 76x50 Zoom Use 0% Tactical HUD 1 Map Filters NONE Filters NONE Steam 1 RUN: b523bc88-677f-4211-8150-cd9ad7ca5ffa